[Event "Doeberl Cup 2022"]
[Site "Canberra"]
[Date "2022.04.17"]
[Round "8.2"]
[White "Kuybokarov, Temur"]
[Black "Cheng, Bobby"]
[Result "1-0"]
[ECO "C11"]
[WhiteElo "2576"]
[BlackElo "2550"]
[Annotator "TA"]
[PlyCount "123"]
[EventDate "2022.04.14"]
[EventType "swiss"]
[EventCountry "AUS"]
[SourceTitle "playchess.com"]
[Source "ChessBase"]
[SourceQuality "1"]
[TimeControl "5400+30"]

{[%evp 17,123,0,0,0,10,0,0,0,0,6,14,15,16,12,20,16,16,13,9,12,35,0,0,-9,-19,-19,-12,-56,-12,-14,2,2,2,2,6,0,7,11,75,0,0,0,0,0,170,170,170,168,168,170,170,169,163,162,312,314,311,285,267,221,192,139,594,594,594,594,594,594,594,262,262,262,262,22,34,8,8,8,19,25,29964,29966,29967,29968,29961,29969,29971,29972,29972,29973,29973,29974,29974,29975,29975,29976,29976,29977,29977,29975,29980,29981,29981,29982,29982,29982,29984,29984]} 1. e4 {[%emt 0:06:43]} e6 {[%emt 0:00:09]} 2. d4 {[%emt 0:00:30]} d5 {[%emt 0:00:30]} 3. Nc3 {[%emt 0:00:00]} Nf6 {[%emt 0:00:00]} 4. e5 {[%emt 0:00:12]} Nfd7 {[%emt 0:00:10]} 5. f4 {[%emt 0:00:30]} c5 {[%emt 0:00:30]} 6. Nf3 {[%emt 0:00:30]} Nc6 {[%emt 0:00:30]} 7. Be3 {[%emt 0:00:30]} cxd4 {[%emt 0:00:30]} 8. Nxd4 {[%emt 0:00:30]} Qb6 {[%emt 0:00:30]} 9. a3 {[%emt 0:00:30]} Bc5 {[%emt 0:00:30][%cal Rc6d4]} (9... Qxb2 $2 10. Na4 Qxa1 11. Qxa1 $18) 10. Ncb5 {[%emt 0:00:30] C11: French: Classical System: 4 e5 and 4 Bg5 dxe4.} Nxd4 {[%emt 0:00:30]} 11. Bxd4 {[%emt 0:00:30][%cal Ob5d6]} O-O {[%emt 0:00:30]} 12. b4 {[%emt 0:00:30] The position is equal.} Bxd4 {[%emt 0:00:30]} 13. Qxd4 {[%emt 0:00:30]} a5 {[%emt 0:00:30]} 14. Rb1 {[%emt 0:00:30]} axb4 {[%emt 0:00:30]} 15. axb4 {[%emt 0:00:30]} f6 {[%emt 0:00:30]} 16. Qxb6 {[%emt 0:00:30]} Nxb6 {[%emt 0:00:30]} 17. Bd3 {[%emt 0:00:30]} fxe5 {[%emt 0:00:30]} 18. fxe5 {[%emt 0:00:30] [#]} Ra2 $146 {[%emt 0:00:30]} ({Predecessor:} 18... Bd7 19. Nd6 Bc8 {1-0 (43) Quintero,D-Brancaleone,S (1777) ICCF email 2017}) 19. Nd4 {[%emt 0:00:30]} (19. Kd2 {is interesting.} Rf2+ 20. Ke3 Rxg2 21. Nd6) 19... Rf4 {[%emt 0:00:30]} 20. Nf3 {[%emt 0:00:30]} Ra4 {[%emt 0:00:30]} 21. c3 {[%emt 0:00:30]} Ra3 {[%emt 0:00:30]} 22. Ke2 {[%emt 0:00:30]} (22. Kd2 $5 {[%cal Rb1a1]}) 22... Ra2+ {[%emt 0:00:30]} 23. Ke3 {[%emt 0:00:30]} Rg4 {[%emt 0:00:30]} 24. g3 {[%emt 0:00:30]} Nc4+ {[%emt 0:00:30]} 25. Bxc4 {[%emt 0:00:30]} Rxc4 {[%emt 0:00:30]} (25... dxc4 $2 26. Rhd1 $18) 26. Kd3 {[%emt 0:00:30]} Re4 {[%emt 0:00:30]} 27. Ra1 {[%emt 0:00:30]} Rf2 {[%emt 0:00:30]} (27... Ree2 $11 {remains equal.}) 28. Nd4 {[%emt 0:00:30]} ({White should play} 28. Rhf1 $1 $16 {[%cal Rf1f2]} Rxf1 29. Rxf1) 28... Rxe5 $11 {[%emt 0:00:30]} 29. Ra8 {[%emt 0:00:30]} Rf8 {[%emt 0:00:30]} 30. Rha1 {[%emt 0:00:30] aiming for Rb8.} Re4 $2 {[%emt 0:00:30]} (30... Bd7 $11 {and Black has nothing to worry.}) 31. Rb8 $1 $18 {[%emt 0:00:30]} e5 {[%emt 0:00:30] [#]} 32. Raa8 $1 {[%emt 0:00:30]} exd4 {[%emt 0:00:30]} 33. Rxc8 {[%emt 0:00:30]} Rxc8 {[%emt 0:00:30]} 34. Rxc8+ {[%emt 0:00:30][%mdl 4096] Endgame KR-KR} Kf7 {[%emt 0:00:30]} 35. c4 {[%emt 0:00:30][%cal Bc3c4,Bc4d5,Bd5d6][%mdl 32]} Re3+ {[%emt 0:00:30]} (35... Ke7 {was worth a try.} 36. Rb8 (36. cxd5 Rg4 $16) 36... Kd6) 36. Kxd4 {[%emt 1:08:21]} Rb3 {[%emt 1:29:09]} 37. cxd5 {[%emt 0:00:30] Threatens to win with Rc7+.} Rxb4+ {[%emt 0:00:18]} 38. Ke5 {[%emt 0:04:30]} Rb2 {[%emt 0:00:17]} 39. Rc7+ {[%emt 0:01:22]} Kf8 $2 {[%emt 0:00:30][%mdl 8192]} (39... Kg6 $16 40. d6 Re2+ 41. Kd5 Kf6) 40. Ke6 {[%emt 0:00:30][%cal Rc7c8]} ({Weaker is} 40. d6 Ke8 $16) 40... Re2+ {[%emt 0:00:30]} 41. Kd7 $1 {[%emt 0:00:30] And now d6 would win.} Rxh2 {[%emt 0:00:30]} 42. d6 {[%emt 0:00:30]} Rd2 {[%emt 0:00:30]} 43. Rc5 {[%emt 0:00:30]} (43. Rc3 $142 g5 44. Rc5) 43... Kf7 {[%emt 0:00:30]} 44. Rf5+ {[%emt 0:00:30]} Kg6 {[%emt 0:00:30]} 45. Rf4 {[%emt 0:00:30]} (45. g4 $18) 45... Rd3 $11 {[%emt 0:00:30]} 46. Ke7 {[%emt 0:00:30] Hoping for d7.} Re3+ {[%emt 0:00:30]} 47. Kd8 {[%emt 0:00:30] Black must now prevent d7.} Rxg3 {[%emt 0:00:30]} 48. Rd4 {[%emt 0:00:30] White threatens d7 and mate.} Rf3 $2 {[%emt 0:00:30][%mdl 8192]} (48... Kf7 $11) 49. d7 {[%emt 0:00:30] White mates.} Rf7 {[%emt 0:00:30]} 50. Ke8 {[%emt 0:00:30]} Rxd7 {[%emt 0:00:30]} 51. Kxd7 {[%emt 0:00:30] KR-K3P} ({Less strong is} 51. Rxd7 h5 $16) 51... Kf5 {[%emt 0:00:30] [#]} 52. Rd5+ $1 {[%emt 0:00:30]} Kg4 {[%emt 0:00:30] [#]} 53. Ke6 $1 {[%emt 0:00:30]} h5 {[%emt 0:00:30]} 54. Rd4+ {[%emt 0:00:30]} Kg5 {[%emt 0:00:30]} 55. Ke5 {[%emt 0:00:30]} h4 {[%emt 0:00:30]} 56. Ke4 {[%emt 0:00:30]} Kg4 {[%emt 0:00:30]} 57. Ke3+ {[%emt 0:00:30]} Kg3 {[%emt 0:00:30]} 58. Rd5 {[%emt 0:00:30]} h3 {[%emt 0:00:30]} 59. Rg5+ {[%emt 0:00:30]} Kh4 {[%emt 0:00:30]} 60. Rxg7 {[%emt 0:00:30]} h2 {[%emt 0:00:30]} 61. Kf2 {[%emt 0:00:30]} h1=N+ {[%emt 0:00:30]} 62. Kf3 {[%emt 0:00:30] Weighted Error Value: White=0.21 (precise) /Black=0.43} 1-0

[Event "Doeberl Cup 2022"]
[Site "Canberra"]
[Date "2022.04.17"]
[Round "8.3"]
[White "Ikeda, Junta"]
[Black "Fernandez, Daniel Howard"]
[Result "0-1"]
[ECO "D00"]
[WhiteElo "2457"]
[BlackElo "2487"]
[Annotator "TA"]
[PlyCount "84"]
[EventDate "2022.04.14"]
[EventType "swiss"]
[EventCountry "AUS"]
[SourceTitle "playchess.com"]
[Source "ChessBase"]
[SourceQuality "1"]
[TimeControl "5400+30"]

{[%evp 9,84,17,20,23,57,60,60,60,56,61,58,50,73,77,93,97,97,100,92,51,100,109,115,118,119,117,113,118,141,91,115,45,72,63,131,28,62,60,62,56,128,75,152,57,52,42,62,58,75,56,120,109,90,84,154,188,143,-339,-337,-1107,-1125,-1130,-1076,-1085,-1058,-1489,-1399,-4014,-2863,-29989,-5637,-29987,-29988,-29990,-29991,-29992,-29993]} 1. d4 {[%emt 0:06:57]} Nf6 {[%emt 0:00:51]} 2. Nc3 {[%emt 0:00:34]} d5 {[%emt 0:03:43]} 3. Bf4 {[%emt 0:00:08]} Nh5 {[%emt 0:05:10]} 4. Be5 {[%emt 0:06:24]} f6 {[%emt 0:00:22]} 5. e4 {[%emt 0:15:46]} g6 {[%emt 0:00:03]} 6. Bg3 {[%emt 0:01:03] D00: 1 d4 d5: Unusual lines.} c6 {[%emt 0:01:58] [#]} 7. exd5 $146 {[%emt 0:04:22] Bc4 is the strong threat.} ({Predecessor:} 7. Be2 Nxg3 8. hxg3 Bg7 9. exd5 cxd5 10. Bf3 e6 11. Nge2 Nc6 12. Qd3 Ne7 13. O-O-O {½-½ (47) Englert,F (2350)-Cherniaev,A (2441) London 2015}) 7... cxd5 {[%emt 0:00:08]} 8. Bxb8 {[%emt 0:00:34] White is slightly better.} Rxb8 {[%emt 0:00:03]} 9. Qf3 {[%emt 0:00:32]} e6 {[%emt 0:00:37]} 10. g4 {[%emt 0:05:41]} Ng7 {[%emt 0:01:03]} 11. h4 $1 {[%emt 0:02:50]} h5 {[%emt 0:01:15]} 12. Bd3 $36 {[%emt 0:03:38][%mdl 2048] White is in control.} Kf7 {[%emt 0:00:43]} 13. gxh5 {[%emt 0:02:31]} Nxh5 {[%emt 0:00:10]} 14. Nh3 {[%emt 0:03:32]} b5 {[%emt 0:02:32]} (14... Be7 $14 {might be stronger.}) 15. O-O-O $16 {[%emt 0:05:05]} Bh6+ {[%emt 0:01:05]} 16. Kb1 {[%emt 0:00:36]} f5 {[%emt 0:00:02]} 17. Ne2 {[%emt 0:04:57]} (17. Bxb5 $6 Qxh4 18. Ng1 Qe7 $11) (17. Nxb5 Bd7 18. c4 Bxb5 19. cxb5 Qxh4 $11) 17... Bd7 {[%emt 0:01:36]} 18. Rdg1 {[%emt 0:02:28]} Rb6 {[%emt 0:11:09]} 19. Ng5+ {[%emt 0:07:25]} (19. Qg2 $6 Rg8 $14) (19. Nc1 $142) 19... Ke7 {[%emt 0:01:50]} 20. Qg2 {[%emt 0:09:31]} (20. Nf4 $16 Nxf4 21. Qxf4) 20... Be8 {[%emt 0:01:49]} 21. Re1 {[%emt 0:03:52]} a5 {[%emt 0:05:04]} (21... Bg7 $14) 22. Ng1 {[%emt 0:06:00]} (22. Nc1 $1 $16) 22... Bg7 {[%emt 0:12:34]} (22... Nf4 23. Qg3 Kf8 24. N1f3 $16) 23. N1f3 {[%emt 0:01:50]} Bf6 {[%emt 0:12:37]} 24. Ne5 {[%emt 0:01:05]} Rh6 {[%emt 0:02:36]} ({Black should try} 24... b4 $14) 25. Re3 {[%emt 0:01:29]} ({White should play} 25. Qf3) 25... a4 {[%emt 0:00:25]} (25... Kf8 $142) 26. Rhe1 {[%emt 0:02:17]} (26. a3 $1 $16) 26... Ng7 $14 {[%emt 0:00:17]} 27. Nef3 {[%emt 0:02:07] Pair of Knights!} a3 {[%emt 0:03:15]} 28. b4 $1 {[%emt 0:00:42]} f4 {[%emt 0:02:29] [#]} 29. Re5 {[%emt 0:00:29]} Qc8 {[%emt 0:02:57]} (29... Bxe5 $14 30. Nxe5 Kf8) (29... Rh8 30. Kc1) 30. Rxd5 $16 {[%emt 0:00:31] Strongly threatening Rc5.} Qc3 {[%emt 0:00:46][%csl Ga3][%cal Rc3b2]} 31. Kc1 {[%emt 0:00:09]} Qb2+ {[%emt 0:00:35]} (31... Bc6 $142 32. Ne4 Qxe1+ 33. Nxe1 Bxd5) 32. Kd1 {[%emt 0:00:30]} ({Much weaker is} 32. Kd2 $6 Qxb4+ 33. Kd1 Qb1+ 34. Ke2 (34. Kd2 Qb4+ 35. Kd1 Qb1+ 36. Ke2 Qxa2 $11) 34... Qxa2 $14) 32... Qxa2 {[%emt 0:00:32] [#]} ({Weaker is} 32... Kf8 33. Rc5 Qxa2 34. Ke2 $14) 33. Nd2 $2 {[%emt 0:00:48][%mdl 8192] [#] This costs White the game.} (33. Rc5 $1 $16 {is necessary to keep the advantage. aiming for Ne4.} Kf8 34. Ke2) 33... Bc6 $1 $19 {[%emt 0:01:27] Chess con chili.} ({Not} 33... Rxh4 34. Rc5 $15) 34. Nxe6 $2 {[%emt 0:00:34]} (34. Be4 exd5 35. Bxd5+ Kf8 36. Bxc6 Qa1+ 37. Ke2 Qxd4 38. Qd5 Qxd5 39. Bxd5) 34... Nxe6 {[%emt 0:01:52]} 35. Nb3 {[%emt 0:00:23]} Qb1+ {[%emt 0:03:40]} 36. Kd2 {[%emt 0:00:22]} a2 {[%emt 0:00:20]} 37. Rxe6+ {[%emt 0:00:20]} Kxe6 {[%emt 0:00:02][%mdl 64] Pin} 38. Nc5+ {[%emt 0:00:38]} Kf7 {[%emt 0:00:10]} 39. Qg4 {[%emt 0:00:47]} Qxb4+ {[%emt 0:00:18]} (39... a1=Q $142 40. Qe6+ Kg7 41. Rd7+ Bxd7 42. Qxd7+ Kg8 43. Qe8+ Kh7 44. Qd7+ Bg7 45. Bxg6+ Rbxg6 46. Qxg7+ Kxg7 47. Kd3 Qd1+ 48. Ke4 Qaxd4+ 49. Kf5 Rh5#) 40. Ke2 {[%emt 0:00:27]} f3+ {[%emt 0:00:12] Black mates.} 41. Qxf3 {[%emt 0:00:32]} a1=Q {[%emt 0:00:18][%csl Ga1][%cal Rb4e1]} 42. Rd7+ {[%emt 0:00:33]} Bxd7 {[%emt 0:00:04] Weighted Error Value: White=0.82/Black=0.38} 0-1

[Event "Doeberl Cup 2022"]
[Site "Canberra"]
[Date "2022.04.17"]
[Round "8.4"]
[White "Wallis, Christopher"]
[Black "Bjelobrk, Igor"]
[Result "0-1"]
[ECO "E04"]
[WhiteElo "2337"]
[BlackElo "2403"]
[Annotator "TA"]
[PlyCount "60"]
[EventDate "2022.04.14"]
[EventType "swiss"]
[EventCountry "AUS"]
[SourceTitle "playchess.com"]
[Source "ChessBase"]
[SourceQuality "1"]
[TimeControl "5400+30"]

{[%evp 11,60,27,31,25,41,37,49,6,155,23,31,0,0,-30,-17,-49,-13,-130,-116,-159,-111,-111,-120,-114,-120,-162,-154,-134,-156,-152,-165,-158,-156,-145,-149,-209,-192,-658,-671,-679,-656,-619,-596,-800,-771,-2107,-1093,-2002,-1464,-1932,-847]} 1. d4 {[%emt 0:00:06]} d5 {[%emt 0:02:38]} 2. c4 {[%emt 0:00:34]} e6 {[%emt 0:00:07]} 3. Nf3 {[%emt 0:00:52]} Nf6 {[%emt 0:00:05]} 4. g3 {[%emt 0:00:17]} dxc4 {[%emt 0:00:17]} 5. Bg2 {[%emt 0:00:19]} c6 {[%emt 0:00:11]} 6. Ne5 {[%emt 0:01:39]} Bb4+ {[%emt 0:00:13]} 7. Bd2 {[%emt 0:01:33][%mdl 1024] White has compensation. E04: Open Catalan: 5 Nf3.} Be7 {[%emt 0:00:49]} 8. e3 {[%emt 0:03:42]} b5 $1 {[%emt 0:00:22][%cal Bb7b5,Bb5b4][%mdl 32] 8...b5 is better than 8...0-0.} 9. a4 {[%emt 0:05:10] Threatens to win with axb5. White is slightly better.} Nd5 {[%emt 0:01:33]} (9... b4 $1 $11) 10. O-O {[%emt 0:03:08] [#]} (10. axb5 $16 {Ba5 is the strong threat.} Bb7 11. bxc6 Nxc6 12. Nxc4 (12. Qa4 Qc8 $16)) 10... O-O $146 {[%emt 0:02:19]} ({Predecessor:} 10... Bb7 11. b3 cxb3 12. Qxb3 a6 13. Rc1 O-O 14. Nc3 Nd7 15. Nxd7 Qxd7 16. Ne4 b4 {1-0 (38) Strybuk,A (2263)-Alinasab,M (2355) Chess.com INT 2022}) 11. b3 {[%emt 0:02:00]} cxb3 $1 {[%emt 0:00:30]} 12. Qxb3 {[%emt 0:00:21]} (12. axb5 $5 {[%cal Rd1b3]} b2 13. Ra2 $11) 12... b4 {[%emt 0:01:26]} 13. Rc1 {[%emt 0:06:54] Prevents c5.} c5 {[%emt 0:14:50] White should prevent ...a5.} (13... a5 $5 {[%cal Rc6c5]}) 14. dxc5 {[%emt 0:16:07]} (14. e4 Nf6 15. Ra2 (15. dxc5 Qd4 $17) 15... Nfd7 $17) (14. Nd3 $1 $11) 14... Bf6 $17 {[%emt 0:02:54]} 15. e4 {[%emt 0:11:11]} Nc7 {[%emt 0:04:48]} (15... Bxe5 16. exd5 exd5 17. Qxd5 Qxd5 18. Bxd5 $11) (15... Ne7 $142 16. Bf4 g5) 16. Bf4 {[%emt 0:02:32]} g5 $1 {[%emt 0:09:18][%cal Bg7g5,Bg5f4,Bf4g3][%mdl 32]} (16... Qd4 17. Ra2 Bxe5 18. Rc4 $14) 17. Rd1 {[%emt 0:09:46]} Qe7 $36 {[%emt 0:02:32][%mdl 2048] Black is in control.} 18. Ng4 {[%emt 0:09:29]} gxf4 {[%emt 0:04:15]} (18... Bxa1 19. Bd6 Qd8 20. Be5 Qxd1+ 21. Qxd1 Bxe5 22. Nxe5 $18) 19. e5 {[%emt 0:00:40]} Bg7 {[%emt 0:00:29][%cal Oc7d5] Hoping for ...Nd5!} 20. Bxa8 {[%emt 0:05:38]} Nxa8 {[%emt 0:00:06]} 21. Qxb4 {[%emt 0:01:40] [#]} fxg3 $1 {[%emt 0:12:59]} 22. hxg3 {[%emt 0:01:16] [#]} ({But not} 22. Qxb8 $2 gxh2+ 23. Nxh2 Bb7 $19) 22... Nd7 {[%emt 0:12:20][%cal Bb8d7,Bd7e5,Be5c6][%mdl 32]} 23. Qe4 {[%emt 0:10:44]} (23. Qf4 $17 {was necessary.} Qxc5 24. Nd2 Bxe5 25. Nxe5 (25. Nh6+ $2 Kh8 $19) 25... Qxe5 26. Qxe5 Nxe5 27. Rdc1) 23... f5 {[%emt 0:02:44]} 24. Qxa8 {[%emt 0:03:30]} (24. exf6 Nxf6 25. Nxf6+ Qxf6 26. Ra2) 24... fxg4 $19 {[%emt 0:00:09] Black is clearly winning.} 25. Qxa7 {[%emt 0:00:22]} Qe8 {[%emt 0:03:30]} 26. Nd2 {[%emt 0:02:46]} Nxe5 {[%emt 0:00:19]} 27. Rab1 {[%emt 0:00:46]} Qh5 {[%emt 0:03:20] Strongly threatening ...Qh3.} 28. Rb8 {[%emt 0:00:47]} Nc6 {[%emt 0:02:21]} 29. Qb6 {[%emt 0:00:06]} Nxb8 {[%emt 0:00:06]} 30. Qxb8 {[%emt 0:00:09]} Qxc5 {[%emt 0:00:19] Weighted Error Value: White=1.11/Black=0.50} (30... Bd4 $142 31. Ne4 {[#]} Bxf2+ $1 {[%mdl 512]} 32. Nxf2 Qxc5) 0-1

[Event "Doeberl Cup 2022"]
[Site "Canberra"]
[Date "2022.04.17"]
[Round "8.5"]
[White "Johansen, Darryl K"]
[Black "Puccini, Jack"]
[Result "0-1"]
[ECO "A13"]
[WhiteElo "2385"]
[BlackElo "2313"]
[Annotator "TA"]
[PlyCount "120"]
[EventDate "2022.04.14"]
[EventType "swiss"]
[EventCountry "AUS"]
[SourceTitle "playchess.com"]
[Source "ChessBase"]
[SourceQuality "1"]
[TimeControl "5400+30"]

{[%evp 16,120,43,38,45,12,36,33,61,66,54,53,53,51,50,46,88,103,89,58,64,0,0,0,0,-9,-11,-8,-5,-8,-7,-6,0,-18,-21,-20,-14,-40,-50,-50,-25,-24,-29,-18,-8,-10,0,-29,-27,-74,-48,-87,-95,-102,-48,-52,-50,-68,-57,-64,-62,-97,-94,-146,-145,-187,-195,-236,-222,-220,-218,-277,-266,-387,-362,-368,-203,-211,0,-352,-338,-344,-349,-304,-172,-153,-90,-569,-552,-576,-576,-576,-574,-568,-564,-564,-564,-786,-292,-29977,-29978,-29977,-29978,-29977,-5636,-29980,-29978]} 1. Nf3 {[%emt 0:00:05]} d5 {[%emt 0:00:28]} 2. g3 {[%emt 0:00:36]} Nf6 {[%emt 0:00:14]} 3. Bg2 {[%emt 0:00:25]} e6 {[%emt 0:00:04]} 4. O-O {[%emt 0:01:50]} c5 {[%emt 0:00:04]} 5. c4 {[%emt 0:00:22]} dxc4 {[%emt 0:00:05]} 6. Na3 {[%emt 0:01:35][%cal Bb1a3,Ba3c4,Bc4e5][%mdl 32]} Nc6 {[%emt 0:00:05]} 7. Nxc4 {[%emt 0:00:14]} Be7 {[%emt 0:00:05]} 8. b3 {[%emt 0:01:27]} O-O {[%emt 0:00:06]} 9. Bb2 {[%emt 0:00:34]} Qc7 {[%emt 0:00:05] A13: English Opening: 1...e6.} 10. Rc1 {[%emt 0:02:55]} Rd8 {[%emt 0:00:50]} (10... b5 $5 {[%cal Rb5c4]} 11. Nce5 Bb7 $11) 11. Qc2 {[%emt 0:05:19]} h6 {[%emt 0:16:56] [#] White is slightly better.} 12. Nce5 $146 {[%emt 0:10:36]} ({Predecessor:} 12. Qb1 Bd7 13. Qa1 Rac8 14. d4 cxd4 15. Nxd4 Qb8 16. Rfd1 Nxd4 17. Bxd4 Bc6 18. Be5 Rxd1+ 19. Rxd1 {½-½ (31) Skoberne,J (2552)-Halkias,S (2574) Istanbul 2012}) 12... Bd7 {[%emt 0:15:14]} 13. d4 {[%emt 0:06:18]} Rac8 {[%emt 0:16:46]} 14. Nxd7 {[%emt 0:13:59]} Nxd7 {[%emt 0:04:22]} 15. dxc5 {[%emt 0:00:29][%cal Ob3b4]} Nxc5 {[%emt 0:01:46]} 16. b4 {[%emt 0:03:38][%cal Bb3b4,Bb4b5][%mdl 32]} Na6 {[%emt 0:03:10]} 17. b5 {[%emt 0:00:31][%csl LRa6,LRc6]} Na5 $1 {[%emt 0:01:44]} 18. Qc3 {[%emt 0:13:16]} (18. Qb1 $14 Nc5 19. Bd4) 18... Qxc3 $11 {[%emt 0:03:47]} 19. Bxc3 {[%emt 0:00:12] This bishop pair is nice.} Nb4 {[%emt 0:00:21]} 20. Bxb4 {[%emt 0:01:31]} Bxb4 {[%emt 0:01:39]} 21. e3 {[%emt 0:04:56]} Ba3 {[%emt 0:05:13]} 22. Rxc8 {[%emt 0:00:09]} Rxc8 {[%emt 0:00:04]} 23. Nd4 {[%emt 0:00:12]} Rc5 {[%emt 0:02:23]} 24. Be4 {[%emt 0:06:35]} Bb2 {[%emt 0:04:10]} 25. Rd1 {[%emt 0:03:27]} Kf8 {[%emt 0:00:23]} 26. Bd3 {[%emt 0:03:12]} Bxd4 {[%emt 0:02:33]} 27. exd4 $15 {[%emt 0:00:01][%mdl 4096] Endgame KRB-KRN} Rc3 {[%emt 0:00:15]} 28. Bf1 {[%emt 0:10:12]} Ke7 {[%emt 0:08:32]} 29. d5 {[%emt 0:00:19]} e5 {[%emt 0:00:51]} 30. d6+ {[%emt 0:00:11]} Kd8 {[%emt 0:00:04]} 31. Rd5 {[%emt 0:00:39]} (31. Re1 $5 {[%cal Re1e5]}) 31... f6 {[%emt 0:00:38]} 32. Rd1 {[%emt 0:08:53]} (32. f4 $11 {should be considered.}) 32... Rc2 {[%emt 0:02:08]} 33. Bh3 {[%emt 0:00:29]} Nc4 {[%emt 0:00:51]} 34. d7 {[%emt 0:00:14]} Nb6 {[%emt 0:00:49]} (34... Rxa2 $2 35. Rc1 Ra4 36. Be6 $18) (34... Nb2 $17 35. Rf1 Rd2) 35. Rd3 {[%emt 0:00:53]} Rc4 {[%emt 0:06:20]} (35... Rxa2 36. Rc3 Ke7 37. Rc7 $11) 36. Be6 {[%emt 0:00:16]} Rd4 {[%emt 0:01:02]} 37. Ra3 {[%emt 0:00:14]} Ra4 $1 {[%emt 0:01:53]} ({Reject} 37... Nxd7 38. Rxa7 Nc5 39. Bh3 $11) 38. Rc3 {[%emt 0:00:12]} Nxd7 {[%emt 0:00:10]} 39. Rd3 {[%emt 0:00:26]} (39. f4 $142) 39... Rd4 $17 {[%emt 0:00:04]} 40. Ra3 {[%emt 0:00:12]} Nc5 {[%emt 0:00:28]} 41. Bb3 {[%emt 0:00:49]} Nxb3 {[%emt 0:01:37]} 42. Rxb3 $19 {[%emt 0:00:52] KR-KR} Kc7 {[%emt 0:00:16]} 43. Rc3+ {[%emt 0:00:25]} Kb6 {[%emt 0:00:20]} 44. Rc8 {[%emt 0:00:07]} (44. Kf1 {was called for.}) 44... Rd7 {[%emt 0:01:56]} 45. a4 {[%emt 0:00:02]} Ka5 {[%emt 0:00:41]} (45... Rd4 $142 46. Rg8 g5) 46. Rc4 {[%emt 0:00:07]} Kb6 {[%emt 0:01:15]} (46... a6 $142 47. bxa6 bxa6) 47. Rc8 {[%emt 0:00:21]} Rd4 {[%emt 0:00:32]} 48. Rg8 {[%emt 0:00:06]} Rxa4 {[%emt 0:00:21]} 49. Rxg7 {[%emt 0:00:06]} Rd4 {[%emt 0:00:17]} ({Not} 49... Kxb5 50. Rxb7+ Kc4 51. Rc7+ Kb3 52. Rb7+ Kc3 53. Rc7+ Kb2 54. Rb7+ Kc2 55. Rc7+ Kb3 56. Rb7+ Kc3 57. Rc7+ Kb3 $17) (49... Rc4 $142 {And now ...Rc7 would win.} 50. Rf7 Rc7 51. Rxf6+ Kxb5 52. Rxh6 a5) 50. Rh7 {[%emt 0:00:35] [#]} Rd6 {[%emt 0:00:46]} ({Worse is} 50... Kxb5 51. Rxb7+ Ka6 52. Rh7 $15) ({Black should play} 50... Rc4 $1 {Threatens to win with ...Rc7.} 51. Rxh6 Kxb5 52. Rxf6 a5) 51. Rxh6 $2 {[%emt 0:00:07][%mdl 8192] This costs White the game.} (51. Kf1 $17 {is more resistant.}) 51... Kxb5 {[%emt 0:00:05]} 52. Rh7 {[%emt 0:00:32]} Kc6 {[%emt 0:00:26]} 53. h4 {[%emt 0:00:15]} a5 {[%emt 0:00:06][%cal Ba7a5,Ba5a4,Ba4a3,Ba3a2][%mdl 32] ...a4 is the strong threat.} 54. Rh8 {[%emt 0:00:51]} a4 {[%emt 0:00:16]} 55. Ra8 {[%emt 0:00:09]} Kb5 {[%emt 0:00:05] White must now prevent ...Kb4.} 56. g4 {[%emt 0:00:45]} Ra6 {[%emt 0:02:06] Against Ra7} (56... Kb4 57. Kg2 a3) 57. Rd8 $2 {[%emt 0:00:07] [#]} (57. Rxa6 $19 bxa6 58. Kg2) 57... a3 {[%emt 0:00:14]} 58. Rd1 {[%emt 0:00:06]} a2 {[%emt 0:00:14]} 59. Ra1 {[%emt 0:00:03]} Kb4 {[%emt 0:00:12] ( -> ...Kc3)} 60. h5 {[%emt 0:00:09]} Kb3 {[%emt 0:00:12] Weighted Error Value: White=0.53/Black=0.21 (precise)} 0-1

[Event "Doeberl Cup 2022"]
[Site "Canberra"]
[Date "2022.04.17"]
[Round "8.7"]
[White "Stojic, Dusan"]
[Black "Litchfield, Frederick"]
[Result "0-1"]
[ECO "B72"]
[WhiteElo "2240"]
[BlackElo "2096"]
[Annotator "TA"]
[PlyCount "38"]
[EventDate "2022.04.14"]
[EventType "swiss"]
[EventCountry "AUS"]
[SourceTitle "playchess.com"]
[Source "ChessBase"]
[SourceQuality "1"]
[TimeControl "5400+30"]

{[%evp 18,38,0,0,24,12,62,25,27,18,8,7,27,25,241,238,231,109,113,-168,-164,-554,-521]} 1. e4 {[%emt 1:31:00]} c5 {[%emt 1:31:00]} 2. Nf3 {[%emt 0:00:30]} d6 {[%emt 0:00:30]} 3. d4 {[%emt 0:00:30]} cxd4 {[%emt 0:00:30]} 4. Nxd4 {[%emt 0:00:30]} Nf6 {[%emt 0:00:30]} 5. Nc3 {[%emt 0:00:30]} g6 {[%emt 0:00:30]} 6. h3 {[%emt 0:00:30]} Bg7 {[%emt 0:00:30]} 7. Bc4 {[%emt 0:00:30]} O-O {[%emt 0:00:30]} 8. Bb3 {[%emt 0:00:30]} Nc6 {[%emt 0:00:30]} 9. Be3 {[%emt 0:00:30]} Na5 {[%emt 0:00:30] is now debated instead of 9...Bd7.} 10. O-O {[%emt 0:00:30]} Nxb3 {[%emt 0:00:30] B72: Sicilian Dragon: 6 Be3, lines with h3+Bc4 and sidelines.} 11. axb3 {[%emt 0:00:30]} d5 {[%emt 0:00:30]} (11... a6 $11) 12. e5 {[%emt 0:00:30]} (12. Ndb5 $5 {[%cal Re4e5]}) 12... Ne4 {[%emt 0:00:30] White has an edge.} 13. f4 {[%emt 0:00:30]} Nxc3 $1 {[%emt 0:00:30]} 14. bxc3 {[%emt 0:00:30] [#]} f6 $146 {[%emt 0:00:30]} ({Predecessor:} 14... a6 15. Qd3 Bd7 16. Rae1 Rc8 17. Rf3 e6 18. g4 Qc7 19. Bf2 Rfe8 20. Bh4 Bc6 {1-0 (28) Mazi,L (2346)-Solmajer,L (2010) Ljubljana 2018}) 15. e6 {[%emt 0:00:30] Black must now prevent f5.} Qd6 $2 {[%emt 0:00:30] [#]} (15... f5 $1 $11) 16. f5 $1 $18 {[%emt 0:00:30]} gxf5 {[%emt 0:00:30]} 17. Nxf5 {[%emt 0:00:30]} (17. Qe1 $18 {is more deadly.}) 17... Qxe6 $16 {[%emt 0:00:30] [#]} 18. Qg4 $2 {[%emt 0:00:30][%mdl 8192]} ({Much worse is} 18. Bxa7 $6 Re8 $11) ({Much less strong is} 18. Rxa7 Rxa7 19. Bxa7 Qf7 $11) (18. Qxd5 $3 $16 {[%mdl 512] stays on course. Nxe7+ is the strong threat.} Re8 19. Qd3) 18... Qxe3+ $19 {[%emt 0:00:30]} 19. Kh1 $2 {[%emt 0:00:30]} (19. Nxe3 {nothing else works.} Bxg4 20. hxg4) 19... Bxf5 {[%emt 0:00:30] Weighted Error Value: White=0.94/Black=0.52} 0-1